bitfinex-derivatives/quotes_SOLF0:USTF0_20250131
["timestamp","ask_amount","ask_price","bid_price","bid_amount"]
[1738300361136,7.42011907,236.86,236.81,7.44880346]
[1738300362233,4.2228,236.85,236.81,7.44880346]
[1738300363141,4.2232,236.82,236.81,0.02868439]
[1738300363340,11.64331907,236.82,236.81,0.02868439]
[1738300386065,7.42011907,236.82,236.81,0.02868439]
[1738300386260,7.42011907,236.84,236.81,0.02868439]
[1738300387066,11.64301907,236.84,236.81,0.02868439]
[1738300388366,7.42011907,236.84,236.81,0.02868439]
[1738300390164,7.42011907,236.86,236.81,0.02868439]
[1738300390469,7.42011907,236.84,236.81,0.02868439]
[1738300392966,11.64301907,236.84,236.81,0.02868439]
[1738300393166,7.42011907,236.82,236.81,0.02868439]
[1738300395373,11.64331907,236.82,236.81,0.02868439]
[1738300395574,7.42011907,236.84,236.81,0.02868439]
[1738300397068,11.64301907,236.84,236.81,0.02868439]
[1738300400276,7.42011907,236.82,236.81,0.02868439]
[1738300401779,11.64331907,236.82,236.81,0.02868439]
[1738300403473,7.42011907,236.84,236.81,0.02868439]
[1738300404180,4.223,236.83,236.81,0.02868439]
[1738300407083,11.64301907,236.84,236.81,0.02868439]
[1738300407782,7.42011907,236.84,236.81,0.02868439]
[1738300407977,4.2231,236.83,236.81,0.02868439]
[1738300410383,7.42011907,236.84,236.81,0.02868439]
[1738300410684,4.2232,236.82,236.81,0.02868439]
[1738300414088,7.42011907,236.84,236.81,0.02868439]
[1738300414290,4.2226,236.86,236.82,7.42011907]
[1738300414585,7.42011907,236.85,236.81,0.02868439]
[1738300416086,4.2229,236.84,236.81,0.02868439]
[1738300416285,7.42011907,236.85,236.81,0.02868439]
[1738300418193,7.42011907,236.85,236.82,4.2232]
[1738300419288,7.42011907,236.85,236.81,0.02868439]
[1738300419483,7.42011907,236.85,236.81,4.25208439]
[1738300420885,7.42011907,236.85,236.82,4.2231]
[1738300421092,7.42011907,236.87,236.82,7.42011907]
[1738300421585,7.42011907,236.87,236.81,0.02868439]
[1738300422089,7.42011907,236.87,236.83,4.223]
[1738300422686,11.64251907,236.87,236.83,4.223]
[1738300422885,7.42011907,236.85,236.83,4.223]
[1738300424693,7.42011907,236.85,236.81,4.25198439]
[1738300427095,7.42011907,236.85,236.81,0.02868439]
[1738300428094,7.42011907,236.85,236.81,4.25208439]
[1738300428890,7.42011907,236.83,236.81,0.02868439]
[1738300429184,11.64311907,236.83,236.81,0.02868439]
[1738300429389,7.42011907,236.83,236.81,0.02868439]
[1738300431094,4.2232,236.82,236.81,0.02868439]
[1738300442507,4.2238,236.79,236.74,4.2246]
[1738300442705,7.42011907,236.75,236.74,4.2246]
[1738300449513,4.2248,236.73,236.72,0.02938823]
[1738300449810,11.64491907,236.73,236.72,0.02938823]
[1738300465018,7.42011907,236.75,236.72,0.02938823]
[1738300465213,7.44828276,236.77,236.72,0.02938823]
[1738300465418,7.44828276,236.77,236.72,7.4495073]
[1738300465919,7.44828276,236.77,236.73,4.2248]
[1738300469822,7.44828276,236.77,236.72,0.02938823]
[1738300470121,7.44828276,236.77,236.76,4.2243]
[1738300471424,7.44828276,236.77,236.72,0.02938823]
[1738300471620,7.44828276,236.77,236.75,4.2244]
[1738300471821,7.44828276,236.77,236.72,0.02938823]
[1738300472621,7.44828276,236.77,236.74,4.2246]
[1738300475423,7.44828276,236.77,236.72,0.02938823]
[1738300476624,11.67238276,236.77,236.72,4.25428823]
[1738300478027,11.67238276,236.77,236.73,4.2248]
[1738300478220,11.64471907,236.75,236.72,0.02938823]
[1738300480733,7.42011907,236.73,236.72,0.02938823]
[1738300482831,11.64471907,236.75,236.72,0.02938823]
[1738300484132,7.42011907,236.75,236.72,0.02938823]
[1738300484330,7.42011907,236.73,236.72,0.02938823]
[1738300491235,11.64491907,236.73,236.72,0.02938823]
[1738300494936,7.42011907,236.73,236.72,0.02938823]
[1738300495140,7.42011907,236.75,236.72,0.02938823]
[1738300496148,7.42011907,236.75,236.72,4.25438823]
[1738300496951,7.42011907,236.75,236.72,0.02938823]
[1738300497151,11.64461907,236.75,236.72,0.02938823]
[1738300499447,7.42011907,236.75,236.73,4.2247]
[1738300499750,7.44828276,236.77,236.72,0.02938823]
[1738300501154,7.44828276,236.77,236.74,4.2246]
[1738300503248,7.42011907,236.75,236.72,0.02938823]
[1738300503443,7.42011907,236.75,236.72,4.25418823]
[1738300503942,11.67238276,236.77,236.73,4.2248]
[1738300504751,11.64461907,236.75,236.72,0.02938823]
[1738300505147,7.42011907,236.73,236.72,0.02938823]
[1738300507254,11.64491907,236.73,236.72,0.02938823]
[1738300512757,4.2261,236.67,236.62,43.95737486]
[1738300512955,7.42011907,236.66,236.62,43.95737486]
[1738300513962,7.45231158,236.66,236.62,43.98957661]
[1738300514155,7.45231158,236.66,236.62,48.21627661]
[1738300514960,7.45231158,236.66,236.62,43.98957661]
[1738300515255,7.45231158,236.66,236.63,4.2266]
[1738300516660,7.45231158,236.66,236.62,43.98957661]
[1738300516859,7.45231158,236.66,236.62,4.25900175]
[1738300520464,7.42011907,236.64,236.62,4.25900175]
[1738300523566,7.42011907,236.64,236.62,0.03220175]
[1738300523768,11.64651907,236.64,236.62,0.03220175]
[1738300531971,7.42011907,236.64,236.62,0.03220175]
[1738300532172,4.2266,236.63,236.62,0.03220175]
[1738300536478,7.42011907,236.64,236.54,6.65468747]
[1738300536680,15.31,236.71,236.5,7.42011907]
[1738300536681,7.42011907,236.57,236.5,7.42011907]
[1738300537684,0.02680111,236.56,236.51,0.02920346]
[1738300538185,0.02680111,236.56,236.53,4.2284]
[1738300542383,0.02680111,236.56,236.53,4.2283]
[1738300542582,0.02680111,236.56,236.55,7.42011907]
[1738300542784,7.42011907,236.63,236.55,7.42011907]
[1738300542985,7.42011907,236.63,236.58,4.2273]
[1738300543982,7.44730068,236.63,236.58,4.25432794]
[1738300544180,11.67390068,236.63,236.58,4.25432794]
[1738300545387,7.42011907,236.61,236.58,4.25432794]
[1738300545883,7.44730068,236.63,236.58,0.02702794]
[1738300547188,11.67390068,236.63,236.58,4.25432794]
[1738300548286,7.44730068,236.63,236.58,0.02702794]
[1738300548491,0.02718161,236.63,236.62,4.2268]
[1738300548685,0.02718161,236.63,236.58,1.36542794]
[1738300548890,7.44730068,236.63,236.58,1.36542794]
[1738300549190,7.44730068,236.63,236.58,5.59282794]
[1738300549391,7.44730068,236.63,236.58,1.36542794]
[1738300551083,7.44730068,236.63,236.6,4.2271]
[1738300554297,0.02718161,236.63,236.6,4.2271]
[1738300556300,0.02718161,236.63,236.59,7.42011907]
[1738300556501,0.02718161,236.63,236.61,4.2269]
[1738300557194,0.02718161,236.63,236.62,4.2268]
[1738300565309,0.02718161,236.63,236.6,4.227]
[1738300565699,0.02718161,236.63,236.58,1.36542794]
[1738300567008,0.02718161,236.63,236.61,7.42011907]
[1738300567509,0.02718161,236.63,236.62,4.2268]
[1738300571008,19.03206379,236.73,236.67,7.42011907]
[1738300571812,7.42011907,236.73,236.67,7.42011907]
[1738300572008,0.03043615,236.72,236.69,4.2254]
[1738300572209,0.03043615,236.72,236.68,0.02825122]
[1738300572910,0.03043615,236.72,236.69,4.2255]
[1738300574811,11.64531907,236.71,236.68,0.02825122]
[1738300575011,7.42011907,236.69,236.68,0.02825122]
[1738300577312,7.42011907,236.71,236.68,0.02825122]
[1738300578113,7.42011907,236.71,236.69,4.2255]
[1738300579511,0.03043615,236.72,236.68,0.02825122]
[1738300580815,0.03043615,236.72,236.71,4.2252]
[1738300582313,0.03043615,236.72,236.69,4.2253]
[1738300582615,0.03043615,236.72,236.68,0.02825122]
[1738300583715,0.03043615,236.72,236.7,4.2252]
[1738300585315,0.03043615,236.72,236.71,4.2252]
[1738300595024,0.03043615,236.72,236.68,0.02825122]
[1738300595325,7.42011907,236.71,236.68,0.02825122]
[1738300595519,11.64531907,236.71,236.68,0.02825122]
[1738300596928,7.42011907,236.69,236.68,0.02825122]
[1738300599826,7.42011907,236.71,236.68,0.02825122]
[1738300601230,7.42011907,236.71,236.68,4.25395122]
[1738300603234,7.42011907,236.71,236.68,0.02825122]
[1738300605438,0.03043615,236.72,236.68,0.02825122]
[1738300605631,0.03043615,236.72,236.68,7.44837029]
[1738300606743,0.03043615,236.72,236.71,4.2252]
[1738300613243,0.03043615,236.72,236.69,4.2254]
[1738300614242,0.03043615,236.72,236.7,4.2253]
[1738300615842,0.03043615,236.72,236.69,4.2255]
[1738300617448,0.03043615,236.72,236.68,0.02825122]
[1738300617648,0.03043615,236.72,236.7,4.2252]
[1738300621852,0.03043615,236.72,236.68,0.02825122]
[1738300622052,0.03043615,236.72,236.69,4.2255]
[1738300623153,0.03043615,236.72,236.69,11.64561907]
[1738300629358,0.03043615,236.72,236.7,4.2252]
[1738300629557,0.03043615,236.72,236.69,7.42011907]
[1738300630158,0.03043615,236.72,236.7,4.2253]
[1738300634865,0.03043615,236.72,236.71,4.2252]
[1738300635963,0.03043615,236.72,236.7,4.2253]
[1738300647474,0.03043615,236.72,236.71,4.2252]
[1738300647673,0.03043615,236.72,236.71,11.64531907]
[1738300652984,0.03043615,236.72,236.71,4.2252]
[1738300653585,0.03043615,236.72,236.69,8.76911907]
[1738300653784,0.03043615,236.72,236.7,4.2253]
[1738300654181,0.03043615,236.72,236.69,8.76911907]
[1738300655879,0.03043615,236.72,236.69,7.42011907]
[1738300657184,0.03043615,236.72,236.69,11.64561907]
[1738300659185,0.03043615,236.72,236.7,4.2252]
[1738300660691,0.03043615,236.72,236.69,7.42011907]
[1738300662189,0.03043615,236.72,236.69,11.64561907]
[1738300668293,0.03043615,236.72,236.71,11.64531907]
[1738300669194,7.42011907,236.8,236.75,4.2243]
[1738300670201,7.42011907,236.8,236.77,4.2241]
[1738300673000,7.42011907,236.8,236.75,0.03120881]
[1738300673200,7.42011907,236.8,236.75,4.25550881]
[1738300673695,7.42011907,236.82,236.77,4.2241]
[1738300673896,7.42011907,236.82,236.76,7.42011907]
[1738300674595,7.42011907,236.82,236.77,4.2239]
[1738300675903,11.64331907,236.82,236.76,11.64441907]
[1738300676100,7.42011907,236.8,236.76,4.2243]
[1738300677604,7.42011907,236.8,236.77,4.224]
[1738300679111,7.42011907,236.8,236.76,7.42011907]
[1738300679309,7.42011907,236.8,236.78,4.2239]
[1738300681304,7.42011907,236.82,236.78,4.2239]
[1738300681513,11.64311907,236.84,236.78,7.42011907]
[1738300681706,7.42011907,236.84,236.78,7.42011907]
[1738300681906,5.88059788,236.94,236.8,7.42011907]
[1738300681907,7.42011907,236.86,236.8,7.42011907]
[1738300682101,7.42011907,236.86,236.81,4.2232]
[1738300682301,7.42011907,236.86,236.81,0.03089337]
[1738300683114,7.42011907,236.86,236.82,4.2231]
[1738300683304,7.42011907,236.86,236.82,7.42011907]
[1738300683507,7.42011907,236.88,236.82,7.42011907]
[1738300683704,7.42011907,236.88,236.83,4.2229]
[1738300683904,7.42011907,236.88,236.82,7.42011907]
[1738300684613,7.42011907,236.88,236.86,4.2224]
[1738300685209,7.42011907,236.88,236.82,7.42011907]
[1738300685407,96.4808383,237.0,236.86,7.42011907]
[1738300685714,81.25265839,237.0,236.96,7.42011907]
[1738300686107,16.91249153,236.97,236.96,7.42011907]
[1738300686306,145.89360614,237.04,236.96,15.42011907]
[1738300686307,138.96641933,237.04,236.96,15.42011907]
[1738300686507,94.13545753,237.04,237.03,7.42011907]
[1738300686807,94.13545753,237.04,237.03,11.63961907]
[1738300687205,46.95480881,237.05,237.03,7.42011907]
[1738300687605,46.95480881,237.05,237.01,7.44773138]
[1738300688218,7.42011907,237.09,237.01,7.44773138]
[1738300689017,7.42011907,237.09,237.02,21.04856051]
[1738300689314,4.2186,237.08,237.03,21.04856051]
[1738300689519,7.42011907,237.08,237.03,21.04856051]
[1738300689714,7.42011907,237.06,237.04,21.04856051]
[1738300690021,7.42011907,237.05,236.97,7.42011907]
[1738300690214,7.42011907,237.06,236.99,7.42011907]
[1738300690415,7.42011907,237.06,236.99,7.4502317]
[1738300690615,7.42011907,237.06,237.05,144.58437828]
[1738300691922,11.63911907,237.06,237.03,144.58437828]
[1738300692418,11.63911907,237.06,237.01,176.4856045]
[1738300692822,4.2191,237.05,237.01,176.4856045]
[1738300693421,7.42011907,237.04,237.01,176.4856045]
[1738300693624,11.63971907,237.02,237.01,160.9221045]
[1738300694420,4.22,237.0,236.99,0.03011263]
[1738300694617,11.64011907,237.0,236.99,0.03011263]
[1738300695520,7.42011907,237.0,236.99,0.03011263]
[1738300696614,4.2198,237.02,236.99,0.03011263]
[1738300698126,4.2199,237.01,236.99,0.03011263]
[1738300700524,15.76096124,237.01,236.99,0.03011263]
[1738300701422,4.2199,237.01,236.99,0.03011263]
[1738300701823,11.54106124,237.04,236.99,0.03011263]
[1738300702125,11.54106124,237.07,236.99,0.03011263]
[1738300702325,9.55678778,237.08,237.04,4.2193]
[1738300703627,9.55678778,237.08,236.99,144.61449091]
[1738300703830,4.219,237.06,236.99,144.61449091]
[1738300704128,2.62,237.12,236.99,0.03011263]
[1738300704129,11.54106124,237.1,236.99,0.03011263]
[1738300704330,15.75936124,237.1,237.05,4.219]
[1738300704830,15.75936124,237.1,237.05,4.24623881]
[1738300706028,5.4706,237.13,237.05,4.24623881]
[1738300706029,14.37166124,237.13,237.05,4.24623881]
[1738300706230,4.218,237.12,237.06,4.2189]
[1738300706932,4.2181,237.11,237.06,4.2189]
[1738300707731,14.37166124,237.13,237.05,0.02723881]
[1738300707931,18.58946124,237.13,237.08,4.2185]
[1738300710140,14.37166124,237.13,237.05,0.02723881]
[1738300710340,11.54106124,237.1,237.05,0.02723881]
[1738300711342,18.58946124,237.13,237.05,0.02723881]
[1738300712650,18.58946124,237.13,237.08,4.2184]
[1738300713443,18.58946124,237.13,237.09,4.2184]
[1738300714545,18.58946124,237.13,237.08,4.2186]
[1738300714747,15.75766124,237.19,237.05,0.02723881]
[1738300714941,14.34846124,237.24,237.01,11.54106124]
[1738300715248,14.34846124,237.24,237.11,4.2179]
[1738300715545,11.54106124,237.2,237.11,4.2179]
[1738300715751,11.54106124,237.2,237.15,0.03062013]
[1738300715943,4.2171,237.16,237.15,0.03062013]
[1738300716251,15.75816124,237.16,237.15,0.03062013]
[1738300716656,11.54106124,237.16,236.99,2.7341]
[1738300716952,2.8591,237.15,236.99,2.7341]
[1738300717554,2.8591,237.15,237.05,0.14791]
[1738300717855,0.0282008,237.09,237.05,0.17501934]
[1738300719153,0.0282008,237.09,237.06,4.2187]
[1738300720353,0.0282008,237.09,237.05,0.17501934]
[1738300721852,0.0282008,237.09,237.05,4.39411934]
[1738300722154,0.0282008,237.09,237.05,0.17501934]
[1738300723458,0.0282008,237.09,237.07,4.2186]
[1738300726857,0.0282008,237.09,237.05,4.39401934]
[1738300727661,0.0282008,237.09,237.05,4.39411934]
[1738300729761,0.0282008,237.09,237.06,4.2189]
[1738300730862,7.38013633,237.2,237.07,7.38013633]
[1738300731060,7.38013633,237.2,237.1,7.38013633]
[1738300731758,7.38013633,237.16,237.1,7.38013633]
[1738300732156,7.38013633,237.16,237.11,0.02801148]
[1738300732358,7.38013633,237.18,237.1,7.38013633]
[1738300732560,11.52421778,237.22,237.11,0.03086767]
[1738300732761,11.52421778,237.22,237.07,11.52421778]
[1738300732962,11.52421778,237.22,237.14,0.02709609]
[1738300733862,4.2168,237.18,237.14,0.02709609]
[1738300734265,86.26,237.25,237.14,0.02709609]
[1738300734266,11.52421778,237.19,237.14,0.02709609]
[1738300734664,4.2173,237.15,237.14,0.02709609]
[1738300735260,11.52421778,237.19,237.14,0.02709609]
[1738300735466,4.2171,237.17,237.14,0.02709609]
[1738300735660,11.52421778,237.19,237.14,0.02709609]
[1738300736164,4.2172,237.16,237.14,0.02709609]
[1738300737365,4.2169,237.18,237.14,0.02709609]
[1738300741071,4.2171,237.17,237.14,0.02709609]
[1738300741463,11.52421778,237.19,237.14,0.02709609]
[1738300742969,4.2173,237.15,237.14,0.02709609]
[1738300754778,11.59501209,237.15,237.14,0.02709609]
[1738300761997,7.37771209,237.15,237.14,0.02709609]
[1738300762202,7.37771209,237.17,237.14,0.02709609]
[1738300762399,7.37771209,237.19,237.14,0.02709609]
[1738300762896,11.59411209,237.21,237.15,4.2173]
[1738300764593,7.37771209,237.19,237.15,4.2173]
[1738300765201,7.37771209,237.19,237.14,0.02709609]
[1738300768101,7.37771209,237.19,237.14,4.24459609]
[1738300774311,7.37771209,237.17,237.14,0.02709609]
[1738300774810,7.37771209,237.27,237.16,7.37771209]
[1738300775009,7.37771209,237.29,237.24,4.2156]
[1738300775305,7.37771209,237.31,237.23,7.37771209]
[1738300775810,7.37771209,237.29,237.25,0.03192186]
[1738300776218,11.59291209,237.27,237.25,0.03192186]
[1738300777608,7.37771209,237.27,237.25,0.03192186]
[1738300777811,11.59261209,237.29,237.25,0.03192186]
[1738300778615,4.215,237.28,237.25,0.03192186]
[1738300779408,4.2153,237.27,237.25,0.03192186]
[1738300779913,11.59301209,237.27,237.25,0.03192186]
[1738300780817,7.37771209,237.27,237.15,0.15555]
[1738300781009,2.7148,237.31,237.15,0.15555]
[1738300781010,7.37771209,237.2,237.15,0.15555]
[1738300781613,4.217,237.17,237.15,0.15555]
[1738300782014,0.02986928,237.18,237.15,0.15555]
[1738300783016,4.24666928,237.18,237.15,0.15555]
[1738300783612,0.02986928,237.18,237.15,0.15555]
[1738300783817,4.217,237.17,237.15,0.15555]
[1738300784517,0.02986928,237.18,237.15,0.15555]
[1738300786112,4.24666928,237.18,237.15,0.15555]
[1738300788023,0.02986928,237.18,237.17,11.59471209]
[1738300788325,7.37771209,237.33,237.17,7.37771209]
[1738300788526,7.37771209,237.33,237.26,7.37771209]
[1738300789015,7.37771209,237.33,237.24,7.37771209]
[1738300789326,27.53715999,237.4,237.16,2.7636]
[1738300789327,7.37771209,237.35,237.26,7.40890516]
[1738300789824,7.37771209,237.31,237.26,0.03119307]
[1738300790622,4.2149,237.29,237.26,0.03119307]
[1738300792427,4.2151,237.28,237.26,0.03119307]
[1738300794423,7.37771209,237.27,237.26,0.03119307]
[1738300796028,7.37771209,237.27,237.16,14.35841209]
[1738300796229,7.37771209,237.23,237.16,14.35841209]
[1738300797028,7.37771209,237.23,237.16,11.59481209]
[1738300797226,0.03181457,237.22,237.17,0.02937446]
[1738300797428,7.37771209,237.21,237.17,0.02937446]
[1738300797928,4.2166,237.19,237.17,0.02937446]
[1738300798230,11.59431209,237.19,237.17,0.02937446]
[1738300799638,4.2168,237.18,237.17,0.02937446]
[1738300801137,7.37771209,237.21,237.17,0.02937446]
[1738300801438,0.03181457,237.22,237.17,0.02937446]
[1738300802037,4.2165,237.2,237.17,0.02937446]
[1738300804140,0.03181457,237.22,237.17,0.02937446]
[1738300805043,7.40952666,237.22,237.17,0.02937446]
[1738300805340,4.24801457,237.22,237.17,0.02937446]
[1738300805542,0.03181457,237.22,237.17,0.02937446]
[1738300805742,7.37771209,237.2,237.17,0.02937446]
[1738300806042,7.37771209,237.18,237.17,0.02937446]
[1738300806237,11.59451209,237.18,237.17,0.02937446]
[1738300807241,4.2168,237.18,237.17,0.02937446]
[1738300811350,4.2166,237.19,237.17,0.02937446]
[1738300813141,7.40952666,237.22,237.17,0.02937446]
[1738300813349,4.2164,237.21,237.17,0.02937446]
[1738300814140,4.2164,237.21,237.17,4.24627446]
[1738300816946,4.2167,237.19,237.17,0.02937446]
[1738300817746,11.59451209,237.18,237.17,0.02937446]
[1738300838572,11.59451209,237.18,237.17,7.446e-05]
[1738300838772,4.2181,237.11,237.07,0.14791]
[1738300838974,11.59581209,237.11,237.07,0.14791]
[1738300839168,7.37771209,237.11,237.07,0.14791]
[1738300839369,4.2182,237.1,237.07,0.14791]
[1738300840176,4.2184,237.09,237.07,0.14791]
[1738300840474,4.2184,237.09,237.06,0.02982277]
[1738300841176,7.40827735,237.11,237.06,0.02982277]
[1738300841476,4.2182,237.1,237.06,0.02982277]
[1738300841677,7.40827735,237.11,237.06,0.02982277]
[1738300843278,4.2184,237.09,237.06,0.02982277]
[1738300845278,7.37771209,237.09,237.06,0.02982277]
[1738300845777,4.2187,237.07,237.06,0.02982277]
[1738300846375,7.37771209,237.09,237.06,0.02982277]
[1738300847779,7.37771209,237.07,237.06,0.02982277]
[1738300848783,3.37771209,237.07,237.06,0.02982277]
[1738300852188,7.59641209,237.07,237.06,0.02982277]
[1738300871408,3.37771209,237.07,237.06,0.02982277]
[1738300874505,7.37771209,237.09,237.06,0.02982277]
[1738300874704,7.40827735,237.11,237.06,0.02982277]
[1738300875806,11.62627735,237.11,237.06,0.02982277]
[1738300876006,7.37771209,237.09,237.06,0.02982277]
[1738300876712,7.37771209,237.09,237.06,4.24872277]
[1738300877401,7.37771209,237.09,237.06,0.02982277]
[1738300877805,11.59611209,237.09,237.06,0.02982277]
[1738300881010,7.37771209,237.09,237.06,0.02982277]
[1738300882709,7.37771209,237.09,237.06,4.24872277]
[1738300883412,7.37771209,237.09,237.06,0.02982277]
[1738300890517,11.59611209,237.09,237.06,0.02982277]
[1738300896618,7.37771209,237.09,237.06,0.02982277]
[1738300896817,7.37771209,237.09,237.06,4.24872277]
[1738300900630,7.37771209,237.09,237.06,0.02982277]
[1738300900825,11.59611209,237.09,237.06,0.02982277]
[1738300901529,11.59641209,237.07,237.06,0.02982277]
[1738300907831,7.37771209,237.09,237.06,0.02982277]
[1738300909031,7.37771209,237.07,237.06,0.02982277]
[1738300910134,11.59641209,237.07,237.06,0.02982277]
[1738300918642,4.2199,237.01,236.96,4.2207]
[1738300919541,11.59771209,237.0,236.95,4.2208]
[1738300919737,11.59771209,237.0,236.96,0.02792177]
[1738300920442,4.2203,236.99,236.96,0.02792177]
[1738300920838,7.37771209,236.98,236.96,0.02792177]
[1738300921144,4.2205,236.97,236.96,0.02792177]
[1738300923942,7.37771209,236.98,236.96,0.02792177]
[1738300924244,7.37771209,237.0,236.96,0.02792177]
[1738300924445,0.02990795,237.01,236.96,0.02792177]
[1738300924942,0.02990795,237.01,236.96,7.40563386]
[1738300925846,0.02990795,237.01,236.96,0.02792177]
[1738300926047,7.37771209,237.0,236.96,0.02792177]
[1738300926644,0.02990795,237.01,236.96,0.02792177]
[1738300926847,0.02990795,237.01,236.96,4.24862177]
[1738300927143,0.02990795,237.01,236.96,0.02792177]
[1738300927743,4.24970795,237.01,236.96,0.02792177]
[1738300927944,0.02990795,237.01,236.96,0.02792177]
[1738300928550,7.37771209,237.0,236.96,0.02792177]
[1738300928751,11.59791209,237.0,236.96,0.02792177]
[1738300929350,4.2202,236.99,236.96,0.02792177]
[1738300930848,4.2204,236.98,236.96,0.02792177]
[1738300932952,4.2202,236.99,236.96,0.02792177]
[1738300933151,7.37771209,237.0,236.96,0.02792177]
[1738300933346,0.02990795,237.01,236.96,4.24842177]
[1738300934148,4.24970795,237.01,236.96,4.24842177]
[1738300941551,7.37771209,237.0,236.96,4.24842177]
[1738300942757,4.24970795,237.01,236.96,0.02792177]
[1738300942952,4.24970795,237.01,236.97,4.2204]
[1738300945853,4.22,237.0,236.96,0.02792177]
[1738300946059,7.37771209,236.98,236.96,0.02792177]
[1738300947059,4.2205,236.97,236.96,0.02792177]
[1738300949856,7.37771209,236.98,236.96,0.02792177]
[1738300950055,0.02990795,237.01,236.96,0.02792177]
[1738300951156,0.02990795,237.01,236.97,4.2204]
[1738300953158,4.24980795,237.01,236.97,4.2204]
[1738300956459,4.24980795,237.01,236.96,0.02792177]
[1738300956667,7.37771209,237.0,236.96,0.02792177]
[1738300958069,4.2204,236.98,236.96,0.02792177]
[1738300958262,7.37771209,237.0,236.96,0.02792177]
[1738300959068,4.2202,236.99,236.96,0.02792177]
[1738300963470,0.02990795,237.01,236.96,0.02792177]
[1738300963672,0.02990795,237.01,236.97,4.2205]
[1738300964272,4.24970795,237.01,236.97,4.2205]
[1738300966073,4.24970795,237.01,236.96,0.02792177]
[1738300968074,4.24970795,237.01,236.96,4.24852177]
[1738300968275,4.24970795,237.01,236.96,0.02792177]
[1738300968776,4.24970795,237.01,236.96,4.24862177]
[1738300971584,0.02990795,237.01,236.96,0.02792177]
[1738300971886,0.02990795,237.01,237.0,11.59771209]
[1738300972286,4.2183,237.1,237.04,4.2192]
[1738300973086,11.59571209,237.11,237.05,4.2191]
[1738300973388,0.02660715,237.1,237.06,0.03238636]
[1738300975985,4.24480715,237.1,237.06,0.03238636]
[1738300976189,7.37771209,237.09,237.06,0.03238636]
[1738300976390,7.37771209,237.07,237.06,0.03238636]
[1738300977893,7.37771209,237.09,237.06,0.03238636]
[1738300979091,11.59611209,237.09,237.06,0.03238636]
[1738300981191,11.59641209,237.07,237.06,0.03238636]
[1738300985993,7.37771209,237.07,237.06,0.03238636]
[1738300987096,11.59641209,237.07,237.06,0.03238636]
[1738300988795,7.37771209,237.07,237.06,0.03238636]
[1738300988995,0.02660715,237.1,237.06,0.03238636]
[1738300989393,0.02660715,237.1,237.08,4.2185]
[1738300989599,0.02660715,237.1,237.06,7.41009845]
[1738300990499,0.02660715,237.1,237.07,4.2187]
[1738300990692,0.02660715,237.1,237.06,7.41009845]
[1738300992098,0.02660715,237.1,237.08,4.2185]
[1738300995098,0.02660715,237.1,237.06,4.25118636]
[1738300999606,4.24480715,237.1,237.06,4.25118636]
[1738301000902,4.24480715,237.1,237.06,0.03238636]
[1738301001505,0.02660715,237.1,237.06,0.03238636]
[1738301001701,0.02660715,237.1,237.06,4.25128636]
[1738301002503,0.02660715,237.1,237.06,0.03238636]
[1738301003100,0.02660715,237.1,237.06,4.25118636]
[1738301009415,4.2184,237.09,237.06,0.03238636]
[1738301009709,11.59611209,237.09,237.06,0.03238636]
[1738301009915,4.2187,237.07,237.06,0.03238636]
[1738301011615,7.37771209,237.09,237.06,0.03238636]
[1738301011815,11.59631209,237.09,237.06,0.03238636]
[1738301012311,7.37771209,237.09,237.06,0.03238636]
[1738301012510,4.2186,237.08,237.06,0.03238636]
[1738301017322,4.2187,237.07,237.06,0.03238636]
[1738301028127,11.59641209,237.07,237.06,0.03238636]
[1738301041950,4.2186,237.09,237.06,0.03238636]
[1738301044253,11.59631209,237.09,237.06,0.03238636]
[1738301044453,7.37771209,237.09,237.06,0.03238636]
[1738301045250,4.2186,237.08,237.06,0.03238636]
[1738301045550,7.37771209,237.09,237.06,0.03238636]
[1738301045752,4.2187,237.07,237.06,0.03238636]
[1738301046555,11.59641209,237.07,237.06,0.03238636]
[1738301049649,7.37771209,237.09,237.06,0.03238636]
[1738301050054,4.2187,237.07,237.06,0.03238636]
[1738301050250,11.59641209,237.07,237.06,0.03238636]
[1738301103388,4.2198,237.01,236.97,1.3702]
[1738301103582,11.59751209,237.01,236.97,1.3702]
[1738301103989,7.37771209,236.99,236.92,7.05324206]
[1738301104189,7.37771209,236.95,236.91,144.50568835]
[1738301104388,7.40620762,236.95,236.91,144.53284003]
[1738301106389,7.40620762,236.95,236.91,0.02715168]
[1738301107093,11.62710762,236.95,236.91,0.02715168]
[1738301109489,7.40620762,236.95,236.91,0.02715168]
[1738301110494,11.59911209,236.93,236.91,0.02715168]
[1738301112191,4.2214,236.92,236.91,0.02715168]
[1738301126905,7.40620762,236.95,236.91,0.02715168]
[1738301127105,0.02849553,236.95,236.91,0.02715168]
[1738301128104,0.02849553,236.95,236.91,4.24865168]
[1738301128503,7.37771209,236.98,236.91,7.40486377]
[1738301128807,7.37771209,237.0,236.94,4.2211]
[1738301129802,0.02772791,236.99,236.94,4.2211]